[Event "Titled Tuesday Blitz February 07 Early 2023"]
[White "Papasimakopoulos, Alexandros"]
[Black "Vivas Zamora, Fabian Ernesto"]
[WhiteFideId "4244125"]
[BlackFideId "3902480"]
[WhiteElo "2401"]
[BlackElo "2346"]
[Result "1-0"]
[Round "06"]
[TimeControl "180+2"]
[Date "2023.02.07"]
[WhiteClock "0:00:42"]
[BlackClock "0:00:01"]

1. d4 {[%clk 0:03:00]}  Nf6 {[%clk 0:02:58]} 2. c4 {[%clk 0:03:01]}  g6 {[%clk 0:02:57]} 3. Nc3 {[%clk 0:02:55]}  d5 {[%clk 0:02:57]} 4. Nf3 {[%clk 0:02:52]}  Bg7 {[%clk 0:02:56]} 5. Qb3 {[%clk 0:02:53]}  dxc4 {[%clk 0:02:55]} 6. Qxc4 {[%clk 0:02:53]}  O-O {[%clk 0:02:55]} 7. e4 {[%clk 0:02:53]}  a6 {[%clk 0:02:55]} 8. Be2 {[%clk 0:02:53]}  b5 {[%clk 0:02:54]} 9. Qb3 {[%clk 0:02:53]}  c5 {[%clk 0:02:39]} 10. dxc5 {[%clk 0:02:53]}  Bb7 {[%clk 0:02:35]} 11. e5 {[%clk 0:02:52]}  Ng4 {[%clk 0:02:32]} 12. Bf4 {[%clk 0:02:48]}  Nd7 {[%clk 0:02:26]} 13. Rd1 {[%clk 0:02:32]}  Qc8 {[%clk 0:02:08]} 14. Nd5 {[%clk 0:02:24]}  Bxd5 {[%clk 0:02:07]} 15. Qxd5 {[%clk 0:02:22]}  Qxc5 {[%clk 0:01:58]} 16. O-O {[%clk 0:02:12]}  Qxd5 {[%clk 0:01:49]} 17. Rxd5 {[%clk 0:02:12]}  Nb6 {[%clk 0:01:48]} 18. Rd2 {[%clk 0:02:09]}  Rfd8 {[%clk 0:01:40]} 19. Rfd1 {[%clk 0:01:58]}  Rxd2 {[%clk 0:01:37]} 20. Rxd2 {[%clk 0:01:59]}  Bh6 {[%clk 0:01:21]} 21. Bxh6 {[%clk 0:01:45]}  Nxh6 {[%clk 0:01:21]} 22. Rc2 {[%clk 0:01:29]}  Rc8 {[%clk 0:01:08]} 23. Rxc8+ {[%clk 0:01:28]}  Nxc8 {[%clk 0:01:09]} 24. Nd4 {[%clk 0:01:28]}  Nf5 {[%clk 0:00:57]} 25. Nxf5 {[%clk 0:01:26]}  gxf5 {[%clk 0:00:57]} 26. f4 {[%clk 0:01:26]}  e6 {[%clk 0:00:46]} 27. Kf2 {[%clk 0:01:26]}  Kf8 {[%clk 0:00:45]} 28. Ke3 {[%clk 0:01:17]}  Ke7 {[%clk 0:00:44]} 29. Kd4 {[%clk 0:01:17]}  Nb6 {[%clk 0:00:37]} 30. b3 {[%clk 0:01:08]}  Nd7 {[%clk 0:00:27]} 31. a4 {[%clk 0:00:57]}  bxa4 {[%clk 0:00:25]} 32. bxa4 {[%clk 0:00:58]}  a5 {[%clk 0:00:16]} 33. Kc4 {[%clk 0:00:57]}  f6 {[%clk 0:00:09]} 34. exf6+ {[%clk 0:00:54]}  Nxf6 {[%clk 0:00:06]} 35. Bf3 {[%clk 0:00:48]}  Kd6 {[%clk 0:00:04]} 36. Kb5 {[%clk 0:00:47]}  e5 {[%clk 0:00:01]} 37. fxe5+ {[%clk 0:00:45]}  Kxe5 {[%clk 0:00:02]} 38. Kxa5 {[%clk 0:00:45]}  Ne4 {[%clk 0:00:01]} 39. Kb6 {[%clk 0:00:42]} 1-0


[Site "https://www.chess.com"]

[Event "Titled Tuesday Blitz February 07 Early 2023"]
[White "Slade, Theodore"]
[Black "Skliarov, Viktor"]
[WhiteFideId "426547"]
[BlackFideId "14106736"]
[WhiteElo "1995"]
[BlackElo "2383"]
[Result "1-0"]
[Round "06"]
[TimeControl "180+2"]
[Date "2023.02.07"]
[WhiteClock "0:00:09"]
[BlackClock "0:00:03"]

1. d4 {[%clk 0:03:00]}  Nf6 {[%clk 0:02:59]} 2. c4 {[%clk 0:03:01]}  e6 {[%clk 0:02:58]} 3. g3 {[%clk 0:03:01]}  c5 {[%clk 0:02:58]} 4. d5 {[%clk 0:03:01]}  exd5 {[%clk 0:02:58]} 5. cxd5 {[%clk 0:03:02]}  d6 {[%clk 0:02:58]} 6. Nc3 {[%clk 0:03:03]}  g6 {[%clk 0:02:59]} 7. Bg2 {[%clk 0:03:03]}  Bg7 {[%clk 0:02:59]} 8. Nf3 {[%clk 0:03:03]}  O-O {[%clk 0:02:59]} 9. O-O {[%clk 0:03:04]}  Re8 {[%clk 0:03:00]} 10. Bf4 {[%clk 0:03:04]}  a6 {[%clk 0:02:59]} 11. a4 {[%clk 0:03:04]}  Ne4 {[%clk 0:02:59]} 12. Nxe4 {[%clk 0:03:04]}  Rxe4 {[%clk 0:03:00]} 13. Nd2 {[%clk 0:03:04]}  Rb4 {[%clk 0:02:59]} 14. Rb1 {[%clk 0:02:57]}  Bxb2 {[%clk 0:02:50]} 15. Qc2 {[%clk 0:02:41]}  Bf6 {[%clk 0:02:35]} 16. Rxb4 {[%clk 0:02:34]}  cxb4 {[%clk 0:02:34]} 17. Bxd6 {[%clk 0:02:21]}  Bf5 {[%clk 0:02:22]} 18. e4 {[%clk 0:01:59]}  Qxd6 {[%clk 0:02:05]} 19. exf5 {[%clk 0:01:56]}  Nd7 {[%clk 0:02:05]} 20. Ne4 {[%clk 0:01:53]}  Qb6 {[%clk 0:02:05]} 21. Nxf6+ {[%clk 0:01:50]}  Nxf6 {[%clk 0:02:05]} 22. fxg6 {[%clk 0:01:50]}  hxg6 {[%clk 0:02:04]} 23. Rd1 {[%clk 0:01:37]}  Rd8 {[%clk 0:02:02]} 24. Bf3 {[%clk 0:01:26]}  a5 {[%clk 0:01:57]} 25. Kg2 {[%clk 0:01:26]}  Kg7 {[%clk 0:01:51]} 26. h4 {[%clk 0:01:27]}  Rd6 {[%clk 0:01:40]} 27. Qb2 {[%clk 0:01:26]}  Kh7 {[%clk 0:01:35]} 28. Qe5 {[%clk 0:01:20]}  Qc5 {[%clk 0:01:23]} 29. h5 {[%clk 0:01:15]}  gxh5 {[%clk 0:01:04]} 30. Bxh5 {[%clk 0:01:05]}  Nxh5 {[%clk 0:00:50]} 31. Qxh5+ {[%clk 0:01:06]}  Kg7 {[%clk 0:00:51]} 32. Qe5+ {[%clk 0:00:58]}  Kg8 {[%clk 0:00:43]} 33. Qe8+ {[%clk 0:00:55]}  Kg7 {[%clk 0:00:43]} 34. Qe5+ {[%clk 0:00:52]}  Kg8 {[%clk 0:00:43]} 35. Rd4 {[%clk 0:00:52]}  b3 {[%clk 0:00:33]} 36. Qe8+ {[%clk 0:00:42]}  Kg7 {[%clk 0:00:32]} 37. Qe5+ {[%clk 0:00:38]}  Kg8 {[%clk 0:00:32]} 38. Rg4+ {[%clk 0:00:27]}  Rg6 {[%clk 0:00:32]} 39. Rh4 {[%clk 0:00:24]}  Kf8 {[%clk 0:00:09]} 40. Rh8+ {[%clk 0:00:24]}  Rg8 {[%clk 0:00:10]} 41. Qb8+ {[%clk 0:00:25]}  Ke7 {[%clk 0:00:10]} 42. Qxb7+ {[%clk 0:00:21]}  Kf8 {[%clk 0:00:07]} 43. Qb8+ {[%clk 0:00:20]}  Ke7 {[%clk 0:00:07]} 44. Rxg8 {[%clk 0:00:19]}  Qxd5+ {[%clk 0:00:07]} 45. Kh2 {[%clk 0:00:20]}  Qh5+ {[%clk 0:00:06]} 46. Kg1 {[%clk 0:00:16]}  Qd1+ {[%clk 0:00:06]} 47. Kg2 {[%clk 0:00:16]}  Qd5+ {[%clk 0:00:06]} 48. f3 {[%clk 0:00:17]}  Qd2+ {[%clk 0:00:06]} 49. Kh3 {[%clk 0:00:17]}  Qh6+ {[%clk 0:00:06]} 50. Kg4 {[%clk 0:00:17]}  Qe6+ {[%clk 0:00:04]} 51. Kh5 {[%clk 0:00:14]}  Qh3+ {[%clk 0:00:04]} 52. Kg5 {[%clk 0:00:14]}  f6+ {[%clk 0:00:03]} 53. Kf4 {[%clk 0:00:12]}  Qh6+ {[%clk 0:00:04]} 54. Ke4 {[%clk 0:00:11]}  Qh7+ {[%clk 0:00:03]} 55. Kd4 {[%clk 0:00:10]}  Qc2 {[%clk 0:00:03]} 56. Qd8+ {[%clk 0:00:09]}  Ke6 {[%clk 0:00:03]} 57. Re8+ {[%clk 0:00:09]}  Kf5 {[%clk 0:00:03]} 58. Qd7+ {[%clk 0:00:09]}  Kg5 {[%clk 0:00:03]} 59. Qg4+ {[%clk 0:00:08]}  Kh6 {[%clk 0:00:04]} 60. Rh8+ {[%clk 0:00:09]}  Qh7 {[%clk 0:00:02]} 61. Rxh7+ {[%clk 0:00:09]}  Kxh7 {[%clk 0:00:03]} 62. Qf5+ {[%clk 0:00:09]} 1-0


[Site "https://www.chess.com"]

[Event "Titled Tuesday Blitz February 07 Early 2023"]
[White "Toczek, Grzegorz"]
[Black "Parkhov, Yair"]
[WhiteFideId "1106457"]
[BlackFideId "2813408"]
[WhiteElo "2260"]
[BlackElo "2505"]
[Result "1/2-1/2"]
[Round "06"]
[TimeControl "180+2"]
[Date "2023.02.07"]
[WhiteClock "0:01:18"]
[BlackClock "0:01:23"]

1. e4 {[%clk 0:03:00]}  c5 {[%clk 0:02:54]} 2. c3 {[%clk 0:02:55]}  e6 {[%clk 0:02:43]} 3. d4 {[%clk 0:02:54]}  d5 {[%clk 0:02:43]} 4. exd5 {[%clk 0:02:54]}  exd5 {[%clk 0:02:41]} 5. Nf3 {[%clk 0:02:54]}  Nc6 {[%clk 0:02:40]} 6. Bd3 {[%clk 0:02:40]}  Bd6 {[%clk 0:02:22]} 7. dxc5 {[%clk 0:02:39]}  Bxc5 {[%clk 0:02:22]} 8. O-O {[%clk 0:02:39]}  Nf6 {[%clk 0:02:16]} 9. Re1+ {[%clk 0:02:38]}  Be6 {[%clk 0:02:16]} 10. Be3 {[%clk 0:02:31]}  Bxe3 {[%clk 0:02:15]} 11. Rxe3 {[%clk 0:02:31]}  O-O {[%clk 0:02:15]} 12. Nbd2 {[%clk 0:02:29]}  d4 {[%clk 0:02:06]} 13. cxd4 {[%clk 0:02:25]}  Nxd4 {[%clk 0:02:04]} 14. Ne4 {[%clk 0:02:20]}  Bg4 {[%clk 0:01:55]} 15. Nxf6+ {[%clk 0:02:15]}  Qxf6 {[%clk 0:01:55]} 16. Be2 {[%clk 0:02:05]}  Rad8 {[%clk 0:01:45]} 17. Nxd4 {[%clk 0:01:58]}  Rxd4 {[%clk 0:01:44]} 18. Qb3 {[%clk 0:01:58]}  Bxe2 {[%clk 0:01:42]} 19. Rxe2 {[%clk 0:01:58]}  Rfd8 {[%clk 0:01:42]} 20. Rae1 {[%clk 0:01:52]}  g6 {[%clk 0:01:27]} 21. Qxb7 {[%clk 0:01:50]}  Kg7 {[%clk 0:01:28]} 22. Qxa7 {[%clk 0:01:48]}  h5 {[%clk 0:01:27]} 23. h3 {[%clk 0:01:48]}  Rd2 {[%clk 0:01:23]} 24. Qe3 {[%clk 0:01:36]}  Rxb2 {[%clk 0:01:18]} 25. Rxb2 {[%clk 0:01:34]}  Qxb2 {[%clk 0:01:19]} 26. Qe5+ {[%clk 0:01:33]}  Qxe5 {[%clk 0:01:19]} 27. Rxe5 {[%clk 0:01:34]}  Rd1+ {[%clk 0:01:20]} 28. Kh2 {[%clk 0:01:33]}  Rd2 {[%clk 0:01:21]} 29. Kg3 {[%clk 0:01:27]}  Rxa2 {[%clk 0:01:20]} 30. h4 {[%clk 0:01:27]}  Ra4 {[%clk 0:01:19]} 31. f3 {[%clk 0:01:27]}  Kf6 {[%clk 0:01:18]} 32. Rb5 {[%clk 0:01:27]}  Ra6 {[%clk 0:01:18]} 33. Rc5 {[%clk 0:01:27]}  Rd6 {[%clk 0:01:18]} 34. Rb5 {[%clk 0:01:27]}  Ke6 {[%clk 0:01:18]} 35. Rc5 {[%clk 0:01:27]}  f6 {[%clk 0:01:18]} 36. Rb5 {[%clk 0:01:27]}  Rd4 {[%clk 0:01:17]} 37. Rb6+ {[%clk 0:01:27]}  Kf7 {[%clk 0:01:17]} 38. Rb7+ {[%clk 0:01:27]}  Kf8 {[%clk 0:01:17]} 39. Ra7 {[%clk 0:01:24]}  Rd6 {[%clk 0:01:14]} 40. Kf4 {[%clk 0:01:22]}  Kg8 {[%clk 0:01:13]} 41. g4 {[%clk 0:01:21]}  Rd4+ {[%clk 0:01:12]} 42. Kg3 {[%clk 0:01:21]}  hxg4 {[%clk 0:01:12]} 43. fxg4 {[%clk 0:01:21]}  Rd3+ {[%clk 0:01:12]} 44. Kf4 {[%clk 0:01:20]}  Rh3 {[%clk 0:01:09]} 45. h5 {[%clk 0:01:20]}  gxh5 {[%clk 0:01:09]} 46. gxh5 {[%clk 0:01:20]}  Rxh5 {[%clk 0:01:09]} 47. Kg4 {[%clk 0:01:21]}  Rg5+ {[%clk 0:01:07]} 48. Kf4 {[%clk 0:01:21]}  Kf8 {[%clk 0:01:06]} 49. Rb7 {[%clk 0:01:21]}  Re5 {[%clk 0:01:06]} 50. Ra7 {[%clk 0:01:21]}  Ke8 {[%clk 0:01:01]} 51. Rb7 {[%clk 0:01:20]}  Re7 {[%clk 0:01:01]} 52. Rxe7+ {[%clk 0:01:20]}  Kxe7 {[%clk 0:01:01]} 53. Kf5 {[%clk 0:01:20]}  Kf7 {[%clk 0:01:02]} 54. Kf4 {[%clk 0:01:21]}  Ke6 {[%clk 0:01:03]} 55. Ke4 {[%clk 0:01:21]}  Ke7 {[%clk 0:01:04]} 56. Kf5 {[%clk 0:01:20]}  Kf7 {[%clk 0:01:05]} 57. Kf4 {[%clk 0:01:21]}  Kg6 {[%clk 0:01:05]} 58. Kg4 {[%clk 0:01:21]}  f5+ {[%clk 0:01:06]} 59. Kf4 {[%clk 0:01:21]}  Kf6 {[%clk 0:01:07]} 60. Kf3 {[%clk 0:01:22]}  Ke5 {[%clk 0:01:08]} 61. Ke3 {[%clk 0:01:22]}  Ke6 {[%clk 0:01:09]} 62. Kf4 {[%clk 0:01:22]}  Kf6 {[%clk 0:01:10]} 63. Kf3 {[%clk 0:01:22]}  Ke5 {[%clk 0:01:11]} 64. Ke3 {[%clk 0:01:22]}  f4+ {[%clk 0:01:12]} 65. Kf3 {[%clk 0:01:22]}  Kf5 {[%clk 0:01:13]} 66. Kf2 {[%clk 0:01:23]}  Ke4 {[%clk 0:01:14]} 67. Ke2 {[%clk 0:01:23]}  Ke5 {[%clk 0:01:14]} 68. Kf3 {[%clk 0:01:23]}  Kf5 {[%clk 0:01:15]} 69. Kf2 {[%clk 0:01:24]}  Ke4 {[%clk 0:01:16]} 70. Ke2 {[%clk 0:01:24]}  f3+ {[%clk 0:01:17]} 71. Kf2 {[%clk 0:01:24]}  Kf4 {[%clk 0:01:18]} 72. Kf1 {[%clk 0:01:24]}  Kg4 {[%clk 0:01:19]} 73. Kf2 {[%clk 0:01:24]}  Kf4 {[%clk 0:01:19]} 74. Kf1 {[%clk 0:01:24]}  Ke3 {[%clk 0:01:19]} 75. Ke1 {[%clk 0:01:24]}  Kd3 {[%clk 0:01:20]} 76. Kf2 {[%clk 0:01:21]}  Ke4 {[%clk 0:01:21]} 77. Kf1 {[%clk 0:01:17]}  Ke3 {[%clk 0:01:21]} 78. Ke1 {[%clk 0:01:18]}  f2+ {[%clk 0:01:22]} 79. Kf1 {[%clk 0:01:18]}  Kf3 {[%clk 0:01:23]} 1/2-1/2


[Site "https://www.chess.com"]

[Event "Titled Tuesday Blitz February 07 Early 2023"]
[White "Kuderinov, Kirill"]
[Black "Mirzanurov, Bulat"]
[WhiteFideId "13701568"]
[BlackFideId "4184521"]
[WhiteElo "2404"]
[BlackElo "2232"]
[Result "1-0"]
[Round "06"]
[TimeControl "180+2"]
[Date "2023.02.07"]
[WhiteClock "0:00:15"]
[BlackClock "0:00:09"]

1. c4 {[%clk 0:03:00]}  e5 {[%clk 0:02:59]} 2. Nc3 {[%clk 0:03:01]}  Nf6 {[%clk 0:02:59]} 3. g3 {[%clk 0:03:01]}  Bb4 {[%clk 0:02:53]} 4. Bg2 {[%clk 0:03:01]}  O-O {[%clk 0:02:48]} 5. d3 {[%clk 0:03:00]}  Re8 {[%clk 0:02:44]} 6. e4 {[%clk 0:02:56]}  c6 {[%clk 0:02:43]} 7. Ne2 {[%clk 0:02:47]}  d5 {[%clk 0:02:39]} 8. O-O {[%clk 0:02:42]}  dxc4 {[%clk 0:02:33]} 9. dxc4 {[%clk 0:02:37]}  Qc7 {[%clk 0:02:33]} 10. Bg5 {[%clk 0:02:34]}  Nbd7 {[%clk 0:02:31]} 11. Qc2 {[%clk 0:02:32]}  h6 {[%clk 0:02:29]} 12. Be3 {[%clk 0:02:30]}  Nb6 {[%clk 0:02:29]} 13. c5 {[%clk 0:02:21]}  Nc4 {[%clk 0:02:26]} 14. Nd1 {[%clk 0:01:57]}  Nxe3 {[%clk 0:02:20]} 15. Nxe3 {[%clk 0:01:56]}  Qe7 {[%clk 0:02:14]} 16. Rac1 {[%clk 0:01:53]}  Ba5 {[%clk 0:02:13]} 17. a3 {[%clk 0:01:51]}  Bc7 {[%clk 0:02:13]} 18. b4 {[%clk 0:01:51]}  a5 {[%clk 0:02:12]} 19. Rfd1 {[%clk 0:01:37]}  Be6 {[%clk 0:02:07]} 20. Nc3 {[%clk 0:01:35]}  axb4 {[%clk 0:02:02]} 21. axb4 {[%clk 0:01:36]}  Ra3 {[%clk 0:01:57]} 22. Ra1 {[%clk 0:01:29]}  Rea8 {[%clk 0:01:56]} 23. Rxa3 {[%clk 0:01:24]}  Rxa3 {[%clk 0:01:57]} 24. Qb2 {[%clk 0:01:25]}  Rb3 {[%clk 0:01:56]} 25. Qd2 {[%clk 0:01:21]}  Rxb4 {[%clk 0:01:47]} 26. Ncd5 {[%clk 0:01:15]}  cxd5 {[%clk 0:01:08]} 27. Qxb4 {[%clk 0:01:10]}  d4 {[%clk 0:00:59]} 28. Nf5 {[%clk 0:01:07]}  Bxf5 {[%clk 0:00:57]} 29. exf5 {[%clk 0:01:08]}  b6 {[%clk 0:00:52]} 30. Rc1 {[%clk 0:00:57]}  bxc5 {[%clk 0:00:50]} 31. Qxc5 {[%clk 0:00:53]}  Bd6 {[%clk 0:00:50]} 32. Qc8+ {[%clk 0:00:38]}  Kh7 {[%clk 0:00:47]} 33. Qc4 {[%clk 0:00:38]}  Qd7 {[%clk 0:00:44]} 34. Qd3 {[%clk 0:00:36]}  Bb4 {[%clk 0:00:35]} 35. h3 {[%clk 0:00:34]}  Bc3 {[%clk 0:00:31]} 36. g4 {[%clk 0:00:34]}  Qe7 {[%clk 0:00:27]} 37. Rb1 {[%clk 0:00:32]}  e4 {[%clk 0:00:26]} 38. Qc4 {[%clk 0:00:31]}  e3 {[%clk 0:00:24]} 39. fxe3 {[%clk 0:00:28]}  Qxe3+ {[%clk 0:00:25]} 40. Kh1 {[%clk 0:00:28]}  Ne4 {[%clk 0:00:24]} 41. Qxf7 {[%clk 0:00:14]}  Qf4 {[%clk 0:00:11]} 42. Qg6+ {[%clk 0:00:13]}  Kh8 {[%clk 0:00:11]} 43. Qe8+ {[%clk 0:00:12]}  Kh7 {[%clk 0:00:11]} 44. Qxe4 {[%clk 0:00:13]}  Qg3 {[%clk 0:00:09]} 45. f6+ {[%clk 0:00:13]}  Kh8 {[%clk 0:00:09]} 46. fxg7+ {[%clk 0:00:14]}  Kxg7 {[%clk 0:00:10]} 47. Rf1 {[%clk 0:00:14]}  d3 {[%clk 0:00:09]} 48. Qe7+ {[%clk 0:00:13]}  Kg6 {[%clk 0:00:09]} 49. Qf7+ {[%clk 0:00:14]}  Kg5 {[%clk 0:00:09]} 50. Qf5+ {[%clk 0:00:15]}  Kh4 {[%clk 0:00:09]} 51. Qh5# {[%clk 0:00:15]} 1-0


[Site "https://www.chess.com"]

[Event "Titled Tuesday Blitz February 07 Early 2023"]
[White "Song, Julien"]
[Black "Jimenez, Joaquin"]
[WhiteFideId "659487"]
[BlackFideId "109860"]
[WhiteElo "2350"]
[BlackElo "2195"]
[Result "0-1"]
[Round "06"]
[TimeControl "180+2"]
[Date "2023.02.07"]
[WhiteClock "0:00:53"]
[BlackClock "0:00:22"]

1. d4 {[%clk 0:03:00]}  e6 {[%clk 0:02:59]} 2. e4 {[%clk 0:03:00]}  d5 {[%clk 0:02:58]} 3. Nc3 {[%clk 0:02:59]}  Bb4 {[%clk 0:02:58]} 4. e5 {[%clk 0:02:59]}  c5 {[%clk 0:02:57]} 5. a3 {[%clk 0:02:59]}  Bxc3+ {[%clk 0:02:58]} 6. bxc3 {[%clk 0:03:00]}  Ne7 {[%clk 0:02:58]} 7. Nf3 {[%clk 0:02:54]}  b6 {[%clk 0:02:57]} 8. Bb5+ {[%clk 0:02:53]}  Bd7 {[%clk 0:02:57]} 9. Bd3 {[%clk 0:02:54]}  c4 {[%clk 0:02:54]} 10. Be2 {[%clk 0:02:53]}  Ba4 {[%clk 0:02:54]} 11. h4 {[%clk 0:02:51]}  h6 {[%clk 0:02:54]} 12. h5 {[%clk 0:02:51]}  Kd7 {[%clk 0:02:54]} 13. Be3 {[%clk 0:02:48]}  Qg8 {[%clk 0:02:52]} 14. g4 {[%clk 0:02:48]}  Qh7 {[%clk 0:02:51]} 15. Ra2 {[%clk 0:02:47]}  Nbc6 {[%clk 0:02:50]} 16. Nh4 {[%clk 0:02:45]}  Raf8 {[%clk 0:02:43]} 17. f4 {[%clk 0:02:45]}  Qe4 {[%clk 0:02:32]} 18. Kd2 {[%clk 0:02:45]}  f6 {[%clk 0:02:04]} 19. Bf3 {[%clk 0:02:44]}  Qh7 {[%clk 0:02:03]} 20. exf6 {[%clk 0:02:36]}  gxf6 {[%clk 0:02:01]} 21. f5 {[%clk 0:02:36]}  e5 {[%clk 0:01:55]} 22. Ng6 {[%clk 0:02:33]}  Nxg6 {[%clk 0:01:46]} 23. hxg6 {[%clk 0:02:34]}  Qg7 {[%clk 0:01:40]} 24. Bxd5 {[%clk 0:02:31]}  exd4 {[%clk 0:01:39]} 25. Bxd4 {[%clk 0:02:29]}  Nxd4 {[%clk 0:01:35]} 26. cxd4 {[%clk 0:02:29]}  Kc7 {[%clk 0:01:34]} 27. Kc3 {[%clk 0:02:28]}  b5 {[%clk 0:01:30]} 28. Qf3 {[%clk 0:02:24]}  Rd8 {[%clk 0:01:28]} 29. Raa1 {[%clk 0:02:21]}  Qd7 {[%clk 0:01:20]} 30. Qf4+ {[%clk 0:02:07]}  Kb6 {[%clk 0:01:17]} 31. Be6 {[%clk 0:02:08]}  Qe7 {[%clk 0:01:11]} 32. d5 {[%clk 0:02:01]}  a5 {[%clk 0:01:00]} 33. Qd4+ {[%clk 0:02:01]}  Ka6 {[%clk 0:01:00]} 34. Rhd1 {[%clk 0:01:57]}  h5 {[%clk 0:00:58]} 35. d6 {[%clk 0:01:55]}  Qb7 {[%clk 0:00:58]} 36. d7 {[%clk 0:01:45]}  hxg4 {[%clk 0:00:57]} 37. Qd6+ {[%clk 0:01:42]}  Ka7 {[%clk 0:00:54]} 38. Qc5+ {[%clk 0:01:40]}  Qb6 {[%clk 0:00:49]} 39. Qxb6+ {[%clk 0:01:40]}  Kxb6 {[%clk 0:00:49]} 40. g7 {[%clk 0:01:40]}  Rh3+ {[%clk 0:00:48]} 41. Kb2 {[%clk 0:01:41]}  c3+ {[%clk 0:00:40]} 42. Kc1 {[%clk 0:01:32]}  Rh2 {[%clk 0:00:40]} 43. Bb3 {[%clk 0:01:32]}  Bxb3 {[%clk 0:00:39]} 44. cxb3 {[%clk 0:01:33]}  Kc7 {[%clk 0:00:38]} 45. Rd3 {[%clk 0:01:11]}  Rh1+ {[%clk 0:00:37]} 46. Kc2 {[%clk 0:01:12]}  Rh2+ {[%clk 0:00:26]} 47. Kxc3 {[%clk 0:01:10]}  Rh7 {[%clk 0:00:26]} 48. Rc1 {[%clk 0:01:02]}  Rxg7 {[%clk 0:00:25]} 49. Kd2+ {[%clk 0:01:01]}  Kb7 {[%clk 0:00:24]} 50. Rg1 {[%clk 0:00:59]}  Rdxd7 {[%clk 0:00:23]} 51. Rxd7+ {[%clk 0:00:57]}  Rxd7+ {[%clk 0:00:22]} 52. Ke3 {[%clk 0:00:58]}  Rg7 {[%clk 0:00:22]} 53. Kf4 {[%clk 0:00:58]}  Kc6 {[%clk 0:00:21]} 54. Rxg4 {[%clk 0:00:55]}  Rxg4+ {[%clk 0:00:22]} 55. Kxg4 {[%clk 0:00:56]}  Kd5 {[%clk 0:00:22]} 56. Kh5 {[%clk 0:00:56]}  Ke4 {[%clk 0:00:22]} 57. Kg6 {[%clk 0:00:53]}  Ke5 {[%clk 0:00:22]} 0-1


[Site "https://www.chess.com"]

[Event "Titled Tuesday Blitz February 07 Early 2023"]
[White "Balabayeva, Xeniya"]
[Black "Lamaze, Simon"]
[WhiteFideId "13719688"]
[BlackFideId "36069264"]
[WhiteElo "2191"]
[BlackElo "2363"]
[Result "1-0"]
[Round "06"]
[TimeControl "180+2"]
[Date "2023.02.07"]
[WhiteClock "0:00:43"]
[BlackClock "0:02:00"]

1. e4 {[%clk 0:03:00]}  f5 {[%clk 0:02:58]} 2. exf5 {[%clk 0:02:58]}  d5 {[%clk 0:02:56]} 3. Qh5+ {[%clk 0:02:55]}  Kd7 {[%clk 0:02:56]} 4. d4 {[%clk 0:02:49]}  Nf6 {[%clk 0:02:55]} 5. Qd1 {[%clk 0:02:46]}  c6 {[%clk 0:02:54]} 6. c3 {[%clk 0:02:43]}  b6 {[%clk 0:02:53]} 7. Bf4 {[%clk 0:02:40]}  Ke8 {[%clk 0:02:48]} 8. Bd3 {[%clk 0:02:38]}  c5 {[%clk 0:02:43]} 9. Nf3 {[%clk 0:02:34]}  Nc6 {[%clk 0:02:42]} 10. Ne5 {[%clk 0:02:24]}  Bd7 {[%clk 0:02:41]} 11. Nxc6 {[%clk 0:02:02]}  Bxc6 {[%clk 0:02:41]} 12. Be5 {[%clk 0:02:02]}  Qd7 {[%clk 0:02:38]} 13. Nd2 {[%clk 0:01:55]}  Bb5 {[%clk 0:02:35]} 14. Nf3 {[%clk 0:01:52]}  Bxd3 {[%clk 0:02:29]} 15. Qxd3 {[%clk 0:01:51]}  Ne4 {[%clk 0:02:30]} 16. dxc5 {[%clk 0:01:40]}  bxc5 {[%clk 0:02:21]} 17. O-O-O {[%clk 0:01:30]}  Rd8 {[%clk 0:02:21]} 18. Bg3 {[%clk 0:01:25]}  Qxf5 {[%clk 0:02:17]} 19. Ne5 {[%clk 0:01:04]}  c4 {[%clk 0:02:05]} 20. Qc2 {[%clk 0:00:58]}  e6 {[%clk 0:02:03]} 21. Qa4+ {[%clk 0:00:55]}  Ke7 {[%clk 0:02:02]} 22. Qxa7+ {[%clk 0:00:51]}  Kf6 {[%clk 0:02:02]} 23. Qf7+ {[%clk 0:00:50]}  Kg5 {[%clk 0:02:00]} 24. h4+ {[%clk 0:00:43]}  Kh6 {[%clk 0:02:00]} 25. Bf4+ {[%clk 0:00:43]} 1-0


[Site "https://www.chess.com"]

[Event "Titled Tuesday Blitz February 07 Early 2023"]
[White "Abdilkhair, Abilmansur"]
[Black "Djokovic, Nebojsa"]
[WhiteFideId "13716417"]
[BlackFideId "938300"]
[WhiteElo "2268"]
[BlackElo "2119"]
[Result "0-1"]
[Round "06"]
[TimeControl "180+2"]
[Date "2023.02.07"]
[WhiteClock "0:00:02"]
[BlackClock "0:00:06"]

1. d4 {[%clk 0:03:00]}  e6 {[%clk 0:02:58]} 2. c4 {[%clk 0:03:01]}  Nf6 {[%clk 0:02:57]} 3. Nf3 {[%clk 0:03:01]}  Bb4+ {[%clk 0:02:57]} 4. Nc3 {[%clk 0:02:57]}  O-O {[%clk 0:02:57]} 5. Qb3 {[%clk 0:02:57]}  Bxc3+ {[%clk 0:02:57]} 6. Qxc3 {[%clk 0:02:56]}  b6 {[%clk 0:02:57]} 7. Bg5 {[%clk 0:02:51]}  Bb7 {[%clk 0:02:57]} 8. Nd2 {[%clk 0:02:50]}  h6 {[%clk 0:02:57]} 9. Bh4 {[%clk 0:02:49]}  d6 {[%clk 0:02:57]} 10. f3 {[%clk 0:02:46]}  Nbd7 {[%clk 0:02:57]} 11. e4 {[%clk 0:02:46]}  c5 {[%clk 0:02:53]} 12. d5 {[%clk 0:02:44]}  exd5 {[%clk 0:02:50]} 13. cxd5 {[%clk 0:02:45]}  Nxe4 {[%clk 0:02:26]} 14. fxe4 {[%clk 0:02:08]}  Qxh4+ {[%clk 0:02:25]} 15. Qg3 {[%clk 0:02:05]}  Qxg3+ {[%clk 0:02:23]} 16. hxg3 {[%clk 0:02:06]}  Rfe8 {[%clk 0:02:24]} 17. O-O-O {[%clk 0:02:05]}  Nf6 {[%clk 0:02:23]} 18. Bd3 {[%clk 0:02:03]}  Re7 {[%clk 0:02:21]} 19. Nc4 {[%clk 0:02:02]}  Rd8 {[%clk 0:02:19]} 20. Rhe1 {[%clk 0:01:54]}  Ba6 {[%clk 0:02:17]} 21. e5 {[%clk 0:00:56]}  dxe5 {[%clk 0:01:40]} 22. d6 {[%clk 0:00:56]}  Re6 {[%clk 0:01:39]} 23. Nxe5 {[%clk 0:00:35]}  Bxd3 {[%clk 0:01:36]} 24. Nxd3 {[%clk 0:00:31]}  Rexd6 {[%clk 0:01:28]} 25. Kc2 {[%clk 0:00:28]}  Nd5 {[%clk 0:01:22]} 26. a3 {[%clk 0:00:26]}  c4 {[%clk 0:01:16]} 27. Nf2 {[%clk 0:00:24]}  Kf8 {[%clk 0:01:09]} 28. Re4 {[%clk 0:00:21]}  b5 {[%clk 0:01:03]} 29. Rde1 {[%clk 0:00:18]}  Nf6 {[%clk 0:00:56]} 30. R4e2 {[%clk 0:00:16]}  Rd4 {[%clk 0:00:50]} 31. Kb1 {[%clk 0:00:16]}  g6 {[%clk 0:00:49]} 32. Ka2 {[%clk 0:00:16]}  Rd2 {[%clk 0:00:48]} 33. Nh3 {[%clk 0:00:14]}  Rxe2 {[%clk 0:00:37]} 34. Rxe2 {[%clk 0:00:15]}  Rd3 {[%clk 0:00:38]} 35. Re5 {[%clk 0:00:08]}  a6 {[%clk 0:00:30]} 36. Rc5 {[%clk 0:00:09]}  Rxg3 {[%clk 0:00:27]} 37. Rc6 {[%clk 0:00:09]}  Nd5 {[%clk 0:00:28]} 38. Rxa6 {[%clk 0:00:06]}  Rxg2 {[%clk 0:00:26]} 39. Ka1 {[%clk 0:00:04]}  b4 {[%clk 0:00:23]} 40. Rd6 {[%clk 0:00:03]}  b3 {[%clk 0:00:22]} 41. Rxd5 {[%clk 0:00:02]}  Rg3 {[%clk 0:00:18]} 42. Nf2 {[%clk 0:00:03]}  h5 {[%clk 0:00:14]} 43. Nd1 {[%clk 0:00:03]}  h4 {[%clk 0:00:10]} 44. a4 {[%clk 0:00:04]}  h3 {[%clk 0:00:08]} 45. Rd2 {[%clk 0:00:04]}  Rg2 {[%clk 0:00:06]} 46. Rf2 {[%clk 0:00:03]}  Rg1 {[%clk 0:00:05]} 47. Rd2 {[%clk 0:00:02]}  h2 {[%clk 0:00:06]} 48. Rxh2 {[%clk 0:00:02]}  Rxd1# {[%clk 0:00:06]} 0-1


[Site "https://www.chess.com"]